[Event "*** Titled Tuesday Blitz"]
[Site "Chess.com"]
[Date "2020.10.27"]
[Round "9"]
[White "Arfan48"]
[Black "ajian"]
[Result "1-0"]
[WhiteElo "2445"]
[BlackElo "2345"]
[TimeControl "180+1"]
[EndTime "11:46:39 PDT"]
[Termination "Arfan48 won by checkmate"]

1. e4 {[%clk 0:03:00.9]} 1... c5 {[%clk 0:02:59.8]} 2. Nf3 {[%clk 0:03:00.8]}
2... Nc6 {[%clk 0:03:00.3]} 3. d4 {[%clk 0:03:01.5]} 3... cxd4 {[%clk
0:03:01.2]} 4. Nxd4 {[%clk 0:03:02.4]} 4... Nf6 {[%clk 0:03:01.8]} 5. Nc3 {[%clk
0:03:01.1]} 5... e5 {[%clk 0:03:01.5]} 6. Ndb5 {[%clk 0:03:01.1]} 6... d6 {[%clk
0:03:01.6]} 7. Bg5 {[%clk 0:03:00.9]} 7... a6 {[%clk 0:03:02.1]} 8. Na3 {[%clk
0:03:01.5]} 8... b5 {[%clk 0:03:03]} 9. Nd5 {[%clk 0:03:01.5]} 9... Be7 {[%clk
0:03:03.2]} 10. Bxf6 {[%clk 0:03:01.9]} 10... Bxf6 {[%clk 0:03:04.1]} 11. c3
{[%clk 0:03:02.1]} 11... O-O {[%clk 0:03:04.1]} 12. Nc2 {[%clk 0:03:02.6]} 12...
Rb8 {[%clk 0:03:04.7]} 13. Be2 {[%clk 0:02:49.5]} 13... Bg5 {[%clk 0:03:04.5]}
14. O-O {[%clk 0:02:35.8]} 14... Be6 {[%clk 0:03:04.4]} 15. Nce3 {[%clk
0:02:10.5]} 15... g6 {[%clk 0:02:57.7]} 16. a4 {[%clk 0:01:38]} 16... bxa4
{[%clk 0:02:55.9]} 17. Nc4 {[%clk 0:01:25.3]} 17... Rb5 {[%clk 0:02:30.8]} 18.
Rxa4 {[%clk 0:01:22.4]} 18... Bxd5 {[%clk 0:02:26.1]} 19. exd5 {[%clk
0:01:22.5]} 19... Ne7 {[%clk 0:02:24.8]} 20. Rxa6 {[%clk 0:01:21.6]} 20... Rxd5
{[%clk 0:02:21.7]} 21. Qc2 {[%clk 0:01:16.5]} 21... Qc7 {[%clk 0:02:12.3]} 22.
Rfa1 {[%clk 0:01:13.8]} 22... Rb8 {[%clk 0:01:58.8]} 23. Ra7 {[%clk 0:01:12.6]}
23... Qc5 {[%clk 0:01:29.2]} 24. b4 {[%clk 0:00:58.6]} 24... Qc8 {[%clk
0:01:24.7]} 25. Qb3 {[%clk 0:00:29]} 25... e4 {[%clk 0:00:44.9]} 26. g3 {[%clk
0:00:28.7]} 26... Bf6 {[%clk 0:00:43.5]} 27. Bf1 {[%clk 0:00:27.8]} 27... Nc6
{[%clk 0:00:34.6]} 28. Nxd6 {[%clk 0:00:17.5]} 28... Qe6 {[%clk 0:00:21.2]} 29.
Rxf7 {[%clk 0:00:17.2]} 29... Rxd6 {[%clk 0:00:18]} 30. Bc4 {[%clk 0:00:16.9]}
30... Qxf7 {[%clk 0:00:11.1]} 31. Bxf7+ {[%clk 0:00:16.8]} 31... Kg7 {[%clk
0:00:12]} 32. Bc4 {[%clk 0:00:16.4]} 32... Rbd8 {[%clk 0:00:11.6]} 33. Bf1
{[%clk 0:00:16.3]} 33... Ne5 {[%clk 0:00:11.4]} 34. Qc2 {[%clk 0:00:15.8]} 34...
Nf3+ {[%clk 0:00:11]} 35. Kh1 {[%clk 0:00:15]} 35... Re8 {[%clk 0:00:10]} 36.
Ra7+ {[%clk 0:00:13.9]} 36... Kh8 {[%clk 0:00:10]} 37. Qc1 {[%clk 0:00:12.2]}
37... Bg7 {[%clk 0:00:09.4]} 38. Qf4 {[%clk 0:00:09.6]} 38... Rd5 {[%clk
0:00:08.5]} 39. Be2 {[%clk 0:00:09.3]} 39... Rf5 {[%clk 0:00:07.7]} 40. Qc7
{[%clk 0:00:09.6]} 40... Rg8 {[%clk 0:00:07.3]} 41. Bxf3 {[%clk 0:00:09.2]}
41... exf3 {[%clk 0:00:07.6]} 42. h3 {[%clk 0:00:08.8]} 42... Re5 {[%clk
0:00:07.1]} 43. Kh2 {[%clk 0:00:08.5]} 43... Re2 {[%clk 0:00:06.8]} 44. Qc5
{[%clk 0:00:09.1]} 44... Rc2 {[%clk 0:00:04.6]} 45. Rc7 {[%clk 0:00:06.1]} 45...
h6 {[%clk 0:00:02.9]} 46. Rxg7 {[%clk 0:00:05.4]} 46... Kxg7 {[%clk 0:00:02.7]}
47. Qd4+ {[%clk 0:00:05.3]} 47... Kh7 {[%clk 0:00:03]} 48. Qe3 {[%clk
0:00:05.4]} 48... Rf8 {[%clk 0:00:03]} 49. b5 {[%clk 0:00:04.6]} 49... Rf7
{[%clk 0:00:03.2]} 50. b6 {[%clk 0:00:05]} 50... Rb2 {[%clk 0:00:03.7]} 51. c4
{[%clk 0:00:05.1]} 51... Kg7 {[%clk 0:00:03.8]} 52. c5 {[%clk 0:00:05.6]} 52...
Kf8 {[%clk 0:00:04.3]} 53. c6 {[%clk 0:00:06]} 53... Rc2 {[%clk 0:00:04.4]} 54.
Qa3+ {[%clk 0:00:05.6]} 54... Re7 {[%clk 0:00:05.3]} 55. c7 {[%clk 0:00:05.8]}
55... Rxf2+ {[%clk 0:00:05.4]} 56. Kg1 {[%clk 0:00:05.9]} 56... Rg2+ {[%clk
0:00:05.7]} 57. Kf1 {[%clk 0:00:06.2]} 57... Rh2 {[%clk 0:00:06.3]} 58. c8=Q+
{[%clk 0:00:06.4]} 58... Kf7 {[%clk 0:00:07]} 59. Qc4+ {[%clk 0:00:06.3]} 59...
Kg7 {[%clk 0:00:07.3]} 60. Qxe7+ {[%clk 0:00:06.1]} 60... Kh8 {[%clk 0:00:05.9]}
61. Qc8# {[%clk 0:00:06.8]} 1-0

[Event "*** Titled Tuesday Blitz"]
[Site "Chess.com"]
[Date "2020.10.27"]
[Round "9"]
[White "Funo09"]
[Black "Sychev_Klementy"]
[Result "0-1"]
[WhiteElo "2814"]
[BlackElo "2889"]
[TimeControl "180+1"]
[EndTime "11:46:41 PDT"]
[Termination "Sychev_Klementy won on time"]

1. e4 {[%clk 0:03:00.9]} 1... e5 {[%clk 0:02:59.6]} 2. Nf3 {[%clk 0:03:00.7]}
2... Nc6 {[%clk 0:03:00.2]} 3. Bb5 {[%clk 0:03:01.3]} 3... a6 {[%clk 0:02:59.8]}
4. Ba4 {[%clk 0:03:01.9]} 4... Nf6 {[%clk 0:02:59.5]} 5. O-O {[%clk 0:03:02.4]}
5... b5 {[%clk 0:02:59.6]} 6. Bb3 {[%clk 0:03:02.4]} 6... Bc5 {[%clk 0:03:00.3]}
7. d3 {[%clk 0:02:59.9]} 7... d6 {[%clk 0:02:59.3]} 8. Nc3 {[%clk 0:02:59.5]}
8... Na5 {[%clk 0:02:48.2]} 9. Be3 {[%clk 0:02:57.5]} 9... Nxb3 {[%clk
0:02:43.5]} 10. axb3 {[%clk 0:02:58.4]} 10... Bg4 {[%clk 0:02:08.9]} 11. h3
{[%clk 0:02:38.8]} 11... Bh5 {[%clk 0:02:02.3]} 12. g4 {[%clk 0:01:34.1]} 12...
Bxe3 {[%clk 0:01:50.9]} 13. fxe3 {[%clk 0:01:32.1]} 13... Bg6 {[%clk 0:01:51.5]}
14. Qe1 {[%clk 0:01:23]} 14... O-O {[%clk 0:01:41.4]} 15. Qg3 {[%clk 0:01:20.7]}
15... Qe7 {[%clk 0:01:31.4]} 16. Nh4 {[%clk 0:01:17.9]} 16... c6 {[%clk
0:01:25.2]} 17. Nf5 {[%clk 0:01:10.3]} 17... Qe6 {[%clk 0:01:24.6]} 18. Kh2
{[%clk 0:01:06.5]} 18... d5 {[%clk 0:01:15.9]} 19. exd5 {[%clk 0:00:45.5]} 19...
cxd5 {[%clk 0:01:15.7]} 20. Rf2 {[%clk 0:00:45.9]} 20... b4 {[%clk 0:01:07.6]}
21. Ne2 {[%clk 0:00:43.8]} 21... Rac8 {[%clk 0:01:01.9]} 22. Ng1 {[%clk
0:00:43.8]} 22... Rc6 {[%clk 0:00:53.7]} 23. Nf3 {[%clk 0:00:42.6]} 23... Nd7
{[%clk 0:00:40]} 24. Rg1 {[%clk 0:00:37.7]} 24... f6 {[%clk 0:00:34.9]} 25. N3h4
{[%clk 0:00:30.4]} 25... a5 {[%clk 0:00:15]} 26. Qf3 {[%clk 0:00:27.5]} 26...
Be8 {[%clk 0:00:12.7]} 27. Qxd5 {[%clk 0:00:24.3]} 27... Qxd5 {[%clk 0:00:11.1]}
28. Ne7+ {[%clk 0:00:25]} 28... Kh8 {[%clk 0:00:08.2]} 29. Nxd5 {[%clk
0:00:25.9]} 29... Bf7 {[%clk 0:00:08.2]} 30. Ne7 {[%clk 0:00:24.5]} 30... Rc7
{[%clk 0:00:07.6]} 31. Rgg2 {[%clk 0:00:22.5]} 31... Re8 {[%clk 0:00:07.2]} 32.
Nef5 {[%clk 0:00:22.5]} 32... Rc6 {[%clk 0:00:05.8]} 33. g5 {[%clk 0:00:20.4]}
33... fxg5 {[%clk 0:00:02.4]} 34. Rxg5 {[%clk 0:00:20.6]} 34... g6 {[%clk
0:00:03]} 35. Nh6 {[%clk 0:00:19.4]} 35... Be6 {[%clk 0:00:03.4]} 36. Ng4 {[%clk
0:00:17]} 36... Rec8 {[%clk 0:00:03.5]} 37. Nxe5 {[%clk 0:00:12.9]} 37... Rxc2
{[%clk 0:00:03.7]} 38. Rxc2 {[%clk 0:00:10.4]} 38... Rxc2+ {[%clk 0:00:04.6]}
39. Kg3 {[%clk 0:00:11]} 39... Nf6 {[%clk 0:00:05]} 40. Nc4 {[%clk 0:00:08.3]}
40... Nh5+ {[%clk 0:00:04.5]} 41. Kf3 {[%clk 0:00:07.9]} 41... Bxh3 {[%clk
0:00:04.1]} 42. Rxa5 {[%clk 0:00:07.2]} 42... Bf1 {[%clk 0:00:03.6]} 43. Ne5
{[%clk 0:00:06.1]} 43... Be2+ {[%clk 0:00:02.9]} 44. Ke4 {[%clk 0:00:06.5]}
44... Nf6+ {[%clk 0:00:03.3]} 45. Kd4 {[%clk 0:00:06.3]} 45... Rxb2 {[%clk
0:00:03.8]} 46. Ra8+ {[%clk 0:00:04.3]} 46... Kg7 {[%clk 0:00:03.7]} 47. Ra7+
{[%clk 0:00:05.2]} 47... Kh6 {[%clk 0:00:03.7]} 48. Nhf3 {[%clk 0:00:04.2]}
48... Bxf3 {[%clk 0:00:02.6]} 49. Nxf3 {[%clk 0:00:04.2]} 49... g5 {[%clk
0:00:03.2]} 50. e4 {[%clk 0:00:03.7]} 50... g4 {[%clk 0:00:03.2]} 51. Nh4 {[%clk
0:00:04.2]} 51... Kg5 {[%clk 0:00:02.2]} 52. Nf5 {[%clk 0:00:04.5]} 52... h5
{[%clk 0:00:02.6]} 53. Rg7+ {[%clk 0:00:04]} 53... Kf4 {[%clk 0:00:03.2]} 54.
Nh4 {[%clk 0:00:02.7]} 54... Kg3 {[%clk 0:00:02.7]} 55. e5 {[%clk 0:00:02.3]}
55... Ne8 {[%clk 0:00:01.3]} 56. Nf5+ {[%clk 0:00:02.5]} 56... Kf4 {[%clk
0:00:01.3]} 57. Nd6 {[%clk 0:00:02.3]} 57... Nxg7 {[%clk 0:00:01]} 0-1

[Event "*** Titled Tuesday Blitz"]
[Site "Chess.com"]
[Date "2020.10.27"]
[Round "9"]
[White "zivicd"]
[Black "AntonovaNadezhda"]
[Result "1-0"]
[WhiteElo "2273"]
[BlackElo "2119"]
[TimeControl "180+1"]
[EndTime "11:46:50 PDT"]
[Termination "zivicd won by resignation"]

1. e4 {[%clk 0:03:00.9]} 1... c5 {[%clk 0:02:59.8]} 2. Nc3 {[%clk 0:03:00.1]}
2... Nc6 {[%clk 0:02:58.4]} 3. g3 {[%clk 0:02:59.9]} 3... g6 {[%clk 0:02:58]} 4.
Bg2 {[%clk 0:03:00]} 4... Bg7 {[%clk 0:02:58.6]} 5. d3 {[%clk 0:03:00.5]} 5...
d6 {[%clk 0:02:58.9]} 6. Be3 {[%clk 0:03:00.2]} 6... e6 {[%clk 0:02:58.6]} 7.
Qd2 {[%clk 0:02:59.9]} 7... Nd4 {[%clk 0:02:53.2]} 8. Nd1 {[%clk 0:02:50]} 8...
h6 {[%clk 0:02:26.8]} 9. c3 {[%clk 0:02:49.1]} 9... Nc6 {[%clk 0:02:26.8]} 10.
f4 {[%clk 0:02:47.7]} 10... Nge7 {[%clk 0:02:26.4]} 11. Nf3 {[%clk 0:02:47.3]}
11... O-O {[%clk 0:02:25.9]} 12. O-O {[%clk 0:02:46.7]} 12... f5 {[%clk
0:02:18.6]} 13. Nf2 {[%clk 0:02:41.3]} 13... Rb8 {[%clk 0:02:13.5]} 14. d4
{[%clk 0:02:35]} 14... cxd4 {[%clk 0:01:58.2]} 15. Nxd4 {[%clk 0:02:34.4]} 15...
Na5 {[%clk 0:01:36.6]} 16. b3 {[%clk 0:02:16.1]} 16... b6 {[%clk 0:01:33.1]} 17.
Rad1 {[%clk 0:02:04.9]} 17... d5 {[%clk 0:01:32.4]} 18. exf5 {[%clk 0:01:57.6]}
18... Nxf5 {[%clk 0:01:26.9]} 19. Nxf5 {[%clk 0:01:53.7]} 19... gxf5 {[%clk
0:01:21.2]} 20. Bd4 {[%clk 0:01:53.7]} 20... Ba6 {[%clk 0:01:10.5]} 21. Rfe1
{[%clk 0:01:53.6]} 21... Re8 {[%clk 0:01:01.7]} 22. Bf1 {[%clk 0:01:47.8]} 22...
Bxf1 {[%clk 0:00:53.6]} 23. Kxf1 {[%clk 0:01:48.7]} 23... Nc6 {[%clk 0:00:52.6]}
24. Bxg7 {[%clk 0:01:41.9]} 24... Kxg7 {[%clk 0:00:52.3]} 25. Nd3 {[%clk
0:01:33.3]} 25... Qf6 {[%clk 0:00:46.7]} 26. Ne5 {[%clk 0:01:32.4]} 26... Rbc8
{[%clk 0:00:41.4]} 27. Qd3 {[%clk 0:01:14.3]} 27... Nxe5 {[%clk 0:00:32.4]} 28.
Rxe5 {[%clk 0:01:13.5]} 28... Rc6 {[%clk 0:00:27.8]} 29. c4 {[%clk 0:01:10.3]}
29... Rec8 {[%clk 0:00:17.5]} 30. cxd5 {[%clk 0:00:52.2]} 30... Rc3 {[%clk
0:00:16.3]} 31. Qd4 {[%clk 0:00:49.8]} 31... exd5 {[%clk 0:00:15.3]} 32. Rxd5
{[%clk 0:00:40.1]} 32... Qxd4 {[%clk 0:00:14.4]} 33. R5xd4 {[%clk 0:00:40.2]}
33... Rc2 {[%clk 0:00:14.5]} 34. R1d2 {[%clk 0:00:40.3]} 34... Rxd2 {[%clk
0:00:12.4]} 35. Rxd2 {[%clk 0:00:39.8]} 35... Rc7 {[%clk 0:00:12.9]} 36. Kf2
{[%clk 0:00:39.8]} 36... Kf6 {[%clk 0:00:13.4]} 37. h3 {[%clk 0:00:38.3]} 37...
h5 {[%clk 0:00:13.1]} 38. Ke3 {[%clk 0:00:36.1]} 38... Re7+ {[%clk 0:00:12.2]}
39. Kf3 {[%clk 0:00:35]} 39... Rc7 {[%clk 0:00:11.3]} 40. Rd6+ {[%clk
0:00:34.7]} 40... Kg7 {[%clk 0:00:10.7]} 41. Rd3 {[%clk 0:00:33.3]} 41... Re7
{[%clk 0:00:10.4]} 42. a4 {[%clk 0:00:32.2]} 42... Rc7 {[%clk 0:00:08.7]} 43. g4
{[%clk 0:00:32.4]} 43... hxg4+ {[%clk 0:00:08.2]} 44. hxg4 {[%clk 0:00:32.5]}
44... fxg4+ {[%clk 0:00:08.7]} 45. Kxg4 {[%clk 0:00:32.6]} 45... Kf6 {[%clk
0:00:08.1]} 46. Rd6+ {[%clk 0:00:32]} 46... Ke7 {[%clk 0:00:08]} 47. Rh6 {[%clk
0:00:30.4]} 47... Rc1 {[%clk 0:00:06.4]} 48. Rh7+ {[%clk 0:00:29.6]} 48... Kf6
{[%clk 0:00:06.4]} 49. Rxa7 {[%clk 0:00:29.3]} 49... Rg1+ {[%clk 0:00:06.2]} 50.
Kf3 {[%clk 0:00:28.6]} 50... Rf1+ {[%clk 0:00:06.1]} 51. Ke3 {[%clk 0:00:27.6]}
51... Re1+ {[%clk 0:00:05.5]} 52. Kd4 {[%clk 0:00:26.5]} 52... Rb1 {[%clk
0:00:04.4]} 53. Kc3 {[%clk 0:00:26]} 53... Kf5 {[%clk 0:00:04]} 54. Rf7+ {[%clk
0:00:24.5]} 54... Ke6 {[%clk 0:00:03.5]} 55. Rb7 {[%clk 0:00:24.1]} 55... Kf5
{[%clk 0:00:02.4]} 56. Rxb6 {[%clk 0:00:23.8]} 56... Kxf4 {[%clk 0:00:03.3]} 57.
a5 {[%clk 0:00:23.8]} 57... Ke5 {[%clk 0:00:04.2]} 58. a6 {[%clk 0:00:20.7]}
58... Kd5 {[%clk 0:00:05.1]} 59. Kb4 {[%clk 0:00:20.2]} 59... Ra1 {[%clk
0:00:03.2]} 60. Kb5 {[%clk 0:00:19.2]} 60... Kd4 {[%clk 0:00:01.6]} 61. Rb7
{[%clk 0:00:16.3]} 61... Kd5 {[%clk 0:00:02.2]} 62. a7 {[%clk 0:00:15.8]} 62...
Kd6 {[%clk 0:00:03]} 63. b4 {[%clk 0:00:15.3]} 63... Kd5 {[%clk 0:00:02.2]} 64.
Kb6 {[%clk 0:00:14.9]} 64... Kd6 {[%clk 0:00:02.4]} 65. b5 {[%clk 0:00:14.7]}
65... Rb1 {[%clk 0:00:01.8]} 1-0

[Event "*** Titled Tuesday Blitz"]
[Site "Chess.com"]
[Date "2020.10.27"]
[Round "9"]
[White "Margency"]
[Black "Mr_Sinigami"]
[Result "1-0"]
[WhiteElo "2668"]
[BlackElo "2482"]
[TimeControl "180+1"]
[EndTime "11:46:51 PDT"]
[Termination "Margency won on time"]

1. e4 {[%clk 0:03:00.9]} 1... c5 {[%clk 0:02:58.2]} 2. Nf3 {[%clk 0:03:01.2]}
2... e6 {[%clk 0:02:58.5]} 3. d4 {[%clk 0:03:01.8]} 3... cxd4 {[%clk 0:02:58.7]}
4. Nxd4 {[%clk 0:03:02.7]} 4... a6 {[%clk 0:02:59.1]} 5. c4 {[%clk 0:03:02.8]}
5... Nf6 {[%clk 0:02:58.1]} 6. Nc3 {[%clk 0:03:02.5]} 6... Qc7 {[%clk
0:02:58.1]} 7. a3 {[%clk 0:03:02.2]} 7... Nc6 {[%clk 0:02:46]} 8. Be3 {[%clk
0:03:01.2]} 8... Be7 {[%clk 0:02:42]} 9. Be2 {[%clk 0:02:59.8]} 9... O-O {[%clk
0:02:37.2]} 10. O-O {[%clk 0:02:59.4]} 10... d6 {[%clk 0:02:37.3]} 11. Rc1
{[%clk 0:02:58.6]} 11... Nxd4 {[%clk 0:02:31.6]} 12. Qxd4 {[%clk 0:02:55.5]}
12... Nd7 {[%clk 0:02:25.1]} 13. Rfd1 {[%clk 0:02:51.7]} 13... b6 {[%clk
0:02:20]} 14. b4 {[%clk 0:02:51]} 14... Rb8 {[%clk 0:02:09.8]} 15. f4 {[%clk
0:02:30.3]} 15... Rd8 {[%clk 0:02:02.3]} 16. Bf3 {[%clk 0:02:27.9]} 16... Bb7
{[%clk 0:01:58.5]} 17. Qd3 {[%clk 0:02:25.2]} 17... Ba8 {[%clk 0:01:53.1]} 18.
Rc2 {[%clk 0:02:06.1]} 18... Rbc8 {[%clk 0:01:52.3]} 19. Be2 {[%clk 0:01:57.8]}
19... Nf6 {[%clk 0:01:43.2]} 20. Rcc1 {[%clk 0:01:54]} 20... Qb8 {[%clk
0:01:31.5]} 21. Bf3 {[%clk 0:01:52.4]} 21... h6 {[%clk 0:01:19]} 22. Na4 {[%clk
0:01:38.2]} 22... Nd7 {[%clk 0:01:17.3]} 23. Nc3 {[%clk 0:01:26.4]} 23... Bc6
{[%clk 0:01:12.8]} 24. Ne2 {[%clk 0:01:20.2]} 24... Nf6 {[%clk 0:01:05.8]} 25.
Nd4 {[%clk 0:01:16.9]} 25... Ba8 {[%clk 0:01:04.8]} 26. Qb1 {[%clk 0:01:14.6]}
26... d5 {[%clk 0:01:01.4]} 27. cxd5 {[%clk 0:01:10.3]} 27... exd5 {[%clk
0:01:01.3]} 28. e5 {[%clk 0:01:10.7]} 28... Ne4 {[%clk 0:01:01]} 29. Nf5 {[%clk
0:01:08.1]} 29... Bf8 {[%clk 0:01:00.2]} 30. Bd4 {[%clk 0:01:05.4]} 30... Bc6
{[%clk 0:00:50.5]} 31. Qb3 {[%clk 0:01:01.9]} 31... Bb5 {[%clk 0:00:38.8]} 32.
Qe3 {[%clk 0:00:58.7]} 32... Ba4 {[%clk 0:00:29]} 33. Re1 {[%clk 0:00:56.1]}
33... b5 {[%clk 0:00:20.8]} 34. Bxe4 {[%clk 0:00:42.9]} 34... dxe4 {[%clk
0:00:20.8]} 35. Qxe4 {[%clk 0:00:43.3]} 35... Qa8 {[%clk 0:00:19.9]} 36. Qxa8
{[%clk 0:00:37.4]} 36... Rxa8 {[%clk 0:00:19.6]} 37. Bc5 {[%clk 0:00:36.6]}
37... a5 {[%clk 0:00:18.8]} 38. Bxf8 {[%clk 0:00:35.8]} 38... Kxf8 {[%clk
0:00:19.1]} 39. Nd6 {[%clk 0:00:36]} 39... axb4 {[%clk 0:00:18.2]} 40. axb4
{[%clk 0:00:36.9]} 40... Bb3 {[%clk 0:00:17]} 41. Re3 {[%clk 0:00:36.2]} 41...
Be6 {[%clk 0:00:14.5]} 42. f5 {[%clk 0:00:33.1]} 42... Bd5 {[%clk 0:00:14.6]}
43. Rd3 {[%clk 0:00:30.4]} 43... Bc4 {[%clk 0:00:14.6]} 44. Rd2 {[%clk
0:00:27.5]} 44... Bb3 {[%clk 0:00:13.3]} 45. Rc7 {[%clk 0:00:26.2]} 45... Ra4
{[%clk 0:00:10.8]} 46. Rd4 {[%clk 0:00:21.6]} 46... Ra2 {[%clk 0:00:09.4]} 47.
h4 {[%clk 0:00:20.9]} 47... h5 {[%clk 0:00:08.8]} 48. Rf4 {[%clk 0:00:19.2]}
48... Kg8 {[%clk 0:00:08.4]} 49. f6 {[%clk 0:00:18]} 49... g6 {[%clk 0:00:07.8]}
50. Rd4 {[%clk 0:00:17.2]} 50... Be6 {[%clk 0:00:07.6]} 51. Nxb5 {[%clk
0:00:15.4]} 51... Rb8 {[%clk 0:00:07.7]} 52. Rc5 {[%clk 0:00:14.9]} 52... Rb2
{[%clk 0:00:07.2]} 53. Nd6 {[%clk 0:00:14.2]} 53... R8xb4 {[%clk 0:00:06.1]} 54.
Rxb4 {[%clk 0:00:14.8]} 54... Rxb4 {[%clk 0:00:05.4]} 55. g3 {[%clk 0:00:13.9]}
55... Rb8 {[%clk 0:00:04.6]} 56. Kf2 {[%clk 0:00:13.9]} 56... Kh7 {[%clk
0:00:03.9]} 57. Ne4 {[%clk 0:00:13]} 57... Kh6 {[%clk 0:00:02]} 58. Ng5 {[%clk
0:00:12.7]} 58... Ba2 {[%clk 0:00:02]} 59. Rc7 {[%clk 0:00:12.4]} 59... Rf8
{[%clk 0:00:01.4]} 60. Ke3 {[%clk 0:00:12.2]} 60... Bd5 {[%clk 0:00:01.6]} 61.
Kd4 {[%clk 0:00:11.7]} 61... Ba2 {[%clk 0:00:01.2]} 62. Kc5 {[%clk 0:00:11.6]}
1-0

[Event "*** Titled Tuesday Blitz"]
[Site "Chess.com"]
[Date "2020.10.27"]
[Round "9"]
[White "TioCridineno"]
[Black "mapleaff"]
[Result "0-1"]
[WhiteElo "2232"]
[BlackElo "2385"]
[TimeControl "180+1"]
[EndTime "11:46:53 PDT"]
[Termination "mapleaff won by resignation"]

1. e4 {[%clk 0:03:00.9]} 1... d6 {[%clk 0:02:59.6]} 2. d4 {[%clk 0:03:00]} 2...
Nf6 {[%clk 0:03:00.5]} 3. Nc3 {[%clk 0:02:59.7]} 3... g6 {[%clk 0:02:59.2]} 4.
f3 {[%clk 0:02:59.8]} 4... Bg7 {[%clk 0:02:58.7]} 5. Be3 {[%clk 0:03:00.4]} 5...
O-O {[%clk 0:02:58.3]} 6. Qd2 {[%clk 0:03:00.6]} 6... a6 {[%clk 0:02:56.7]} 7.
a4 {[%clk 0:03:00.3]} 7... Nbd7 {[%clk 0:02:51.6]} 8. Bc4 {[%clk 0:02:58.5]}
8... c5 {[%clk 0:02:51]} 9. Nge2 {[%clk 0:02:58.1]} 9... cxd4 {[%clk 0:02:50.8]}
10. Nxd4 {[%clk 0:02:57.9]} 10... Ne5 {[%clk 0:02:51.1]} 11. Ba2 {[%clk
0:02:57.2]} 11... Bd7 {[%clk 0:02:50.6]} 12. O-O {[%clk 0:02:56.4]} 12... Rc8
{[%clk 0:02:49.8]} 13. h3 {[%clk 0:02:52.8]} 13... Nc4 {[%clk 0:02:49]} 14. Bxc4
{[%clk 0:02:51.5]} 14... Rxc4 {[%clk 0:02:49.9]} 15. b3 {[%clk 0:02:43.3]} 15...
Rc8 {[%clk 0:02:45.8]} 16. Rad1 {[%clk 0:02:43.7]} 16... Qc7 {[%clk 0:02:29.4]}
17. Nde2 {[%clk 0:02:23.4]} 17... b5 {[%clk 0:02:25.8]} 18. axb5 {[%clk
0:02:21.7]} 18... axb5 {[%clk 0:02:26.7]} 19. Bd4 {[%clk 0:02:10.4]} 19... b4
{[%clk 0:02:23.5]} 20. Nd5 {[%clk 0:02:10.4]} 20... Nxd5 {[%clk 0:02:22.7]} 21.
exd5 {[%clk 0:02:06.2]} 21... Qxc2 {[%clk 0:02:21.5]} 22. Bxg7 {[%clk 0:02:02]}
22... Qxd2 {[%clk 0:02:16.1]} 23. Rxd2 {[%clk 0:02:02.3]} 23... Kxg7 {[%clk
0:02:16.5]} 24. Re1 {[%clk 0:02:02.1]} 24... Rc5 {[%clk 0:01:59.4]} 25. Rd4
{[%clk 0:02:02]} 25... Rb8 {[%clk 0:01:56.9]} 26. Ra1 {[%clk 0:01:50.7]} 26...
Rc2 {[%clk 0:01:40]} 27. Nf4 {[%clk 0:01:39]} 27... Rb7 {[%clk 0:01:26]} 28. Rd3
{[%clk 0:01:12.9]} 28... Bf5 {[%clk 0:01:17.5]} 29. Re3 {[%clk 0:01:12.1]} 29...
Rc3 {[%clk 0:01:16.6]} 30. Rae1 {[%clk 0:01:10.7]} 30... Kf8 {[%clk 0:00:58.7]}
31. h4 {[%clk 0:01:03.5]} 31... Bc2 {[%clk 0:00:50.6]} 32. Rxc3 {[%clk
0:00:49.1]} 32... bxc3 {[%clk 0:00:49.6]} 33. Rc1 {[%clk 0:00:50]} 33... Bxb3
{[%clk 0:00:39.2]} 34. Rxc3 {[%clk 0:00:50.1]} 34... h6 {[%clk 0:00:39.6]} 35.
Rd3 {[%clk 0:00:42.6]} 35... g5 {[%clk 0:00:36.9]} 36. hxg5 {[%clk 0:00:42.1]}
36... hxg5 {[%clk 0:00:37.8]} 37. Nh3 {[%clk 0:00:41.3]} 37... f6 {[%clk
0:00:36.6]} 38. Nf2 {[%clk 0:00:41.2]} 38... Rb5 {[%clk 0:00:35.8]} 39. Ng4
{[%clk 0:00:37.8]} 39... Bxd5 {[%clk 0:00:34.9]} 40. Ne3 {[%clk 0:00:38.4]}
40... Rb1+ {[%clk 0:00:32.5]} 41. Kf2 {[%clk 0:00:38.1]} 41... Rb2+ {[%clk
0:00:32.9]} 42. Kg3 {[%clk 0:00:37.9]} 42... Be6 {[%clk 0:00:33.2]} 43. Rc3
{[%clk 0:00:36.4]} 43... Re2 {[%clk 0:00:30.3]} 44. f4 {[%clk 0:00:23.1]} 44...
gxf4+ {[%clk 0:00:24.6]} 45. Kxf4 {[%clk 0:00:23.4]} 45... d5 {[%clk 0:00:25.2]}
46. Rc7 {[%clk 0:00:18.3]} 46... d4 {[%clk 0:00:22]} 47. Nc4 {[%clk 0:00:12]}
47... Bxc4 {[%clk 0:00:20.1]} 48. Rxc4 {[%clk 0:00:11.5]} 48... Rxg2 {[%clk
0:00:16.2]} 49. Ke4 {[%clk 0:00:12]} 49... e5 {[%clk 0:00:15.4]} 50. Kf5 {[%clk
0:00:11.1]} 50... Ke7 {[%clk 0:00:13.2]} 51. Rc7+ {[%clk 0:00:10.8]} 51... Kd6
{[%clk 0:00:13.7]} 52. Rc8 {[%clk 0:00:11.1]} 52... Rf2+ {[%clk 0:00:12.8]} 53.
Ke4 {[%clk 0:00:11.2]} 53... f5+ {[%clk 0:00:12.3]} 54. Kd3 {[%clk 0:00:11.2]}
54... e4+ {[%clk 0:00:12.7]} 55. Kxd4 {[%clk 0:00:11.3]} 55... Ke6 {[%clk
0:00:12]} 56. Rc6+ {[%clk 0:00:11.1]} 56... Kf7 {[%clk 0:00:11.4]} 57. Rh6
{[%clk 0:00:11.1]} 57... Rf3 {[%clk 0:00:10]} 58. Ke5 {[%clk 0:00:11.5]} 58...
e3 {[%clk 0:00:09.7]} 59. Ra6 {[%clk 0:00:11.5]} 59... f4 {[%clk 0:00:08.6]} 60.
Ke4 {[%clk 0:00:11.4]} 60... Rf2 {[%clk 0:00:08.6]} 61. Ra1 {[%clk 0:00:08.7]}
61... e2 {[%clk 0:00:08.5]} 62. Kd3 {[%clk 0:00:09.1]} 62... f3 {[%clk
0:00:08.4]} 63. Ra7+ {[%clk 0:00:09.1]} 63... Kf6 {[%clk 0:00:08.1]} 64. Ra6+
{[%clk 0:00:10]} 64... Kg5 {[%clk 0:00:08]} 65. Ra5+ {[%clk 0:00:10.9]} 65...
Kg4 {[%clk 0:00:08.4]} 66. Ke3 {[%clk 0:00:11.2]} 66... e1=Q+ {[%clk 0:00:07.2]}
0-1